[Event "*** Titled Tuesday Blitz"]
[Site "Chess.com"]
[Date "2018.12.04"]
[Round "7"]
[White "AkibaRubi"]
[Black "Durarbayli"]
[Result "1/2-1/2"]
[WhiteElo "2571"]
[BlackElo "2700"]
[TimeControl "180+2"]
[EndTime "14:38:40 PST"]
[Termination "Game drawn by repetition"]

1. c4 {[%clk 0:03:01.9]} 1... c5 {[%clk 0:02:58.9]} 2. Nf3 {[%clk 0:03:02.1]}
2... Nc6 {[%clk 0:02:59.1]} 3. b3 {[%clk 0:03:03.3]} 3... g6 {[%clk 0:02:59.9]}
4. Bb2 {[%clk 0:03:04.3]} 4... Nf6 {[%clk 0:03:01.6]} 5. g3 {[%clk 0:03:04]}
5... Bg7 {[%clk 0:03:02.4]} 6. Bg2 {[%clk 0:03:05.2]} 6... O-O {[%clk 0:03:04]}
7. d4 {[%clk 0:03:06.5]} 7... d5 {[%clk 0:02:58.2]} 8. cxd5 {[%clk 0:02:57]}
8... Nxd5 {[%clk 0:02:58.5]} 9. Qd2 {[%clk 0:02:48.7]} 9... cxd4 {[%clk
0:02:33]} 10. Nxd4 {[%clk 0:02:50.6]} 10... Ndb4 {[%clk 0:02:20.9]} 11. Bxc6
{[%clk 0:02:36]} 11... Nxc6 {[%clk 0:02:05.3]} 12. Nxc6 {[%clk 0:02:31]} 12...
Qxd2+ {[%clk 0:01:43.5]} 13. Nxd2 {[%clk 0:02:32.9]} 13... Bxb2 {[%clk
0:01:44.8]} 14. Nxe7+ {[%clk 0:02:32.4]} 14... Kg7 {[%clk 0:01:45]} 15. Rb1
{[%clk 0:02:33.6]} 15... Bc3 {[%clk 0:01:45.5]} 16. Nd5 {[%clk 0:01:59.9]} 16...
Bxd2+ {[%clk 0:01:45.8]} 17. Kxd2 {[%clk 0:01:59.3]} 17... Bf5 {[%clk
0:01:46.9]} 18. f3 {[%clk 0:01:18.6]} 18... Bxb1 {[%clk 0:01:43.2]} 19. Rxb1
{[%clk 0:01:20.5]} 19... f5 {[%clk 0:01:36.7]} 20. Rc1 {[%clk 0:01:14.8]} 20...
Rad8 {[%clk 0:01:36.1]} 21. e4 {[%clk 0:01:15.7]} 21... fxe4 {[%clk 0:01:37.4]}
22. fxe4 {[%clk 0:01:17.6]} 22... Rf2+ {[%clk 0:00:55.8]} 23. Ke3 {[%clk
0:01:18.4]} 23... Rxh2 {[%clk 0:00:51.4]} 24. Rc7+ {[%clk 0:01:18.4]} 24... Kh6
{[%clk 0:00:51]} 25. Rxb7 {[%clk 0:01:19.5]} 25... Rxa2 {[%clk 0:00:51.1]} 26.
Nf6 {[%clk 0:01:20.6]} 26... Rh8 {[%clk 0:00:51.9]} 27. Kf4 {[%clk 0:00:56.4]}
27... g5+ {[%clk 0:00:49.5]} 28. Ke5 {[%clk 0:00:46.3]} 28... Kg6 {[%clk
0:00:48.2]} 29. Nd5 {[%clk 0:00:42.3]} 29... Re8+ {[%clk 0:00:39.5]} 30. Kd4
{[%clk 0:00:41.1]} 30... h5 {[%clk 0:00:29.6]} 31. Ne7+ {[%clk 0:00:40.1]} 31...
Kf6 {[%clk 0:00:30]} 32. Nd5+ {[%clk 0:00:37.3]} 32... Kg6 {[%clk 0:00:29.7]}
33. Ne7+ {[%clk 0:00:37.8]} 33... Rxe7 {[%clk 0:00:25.8]} 34. Rxe7 {[%clk
0:00:38.1]} 34... h4 {[%clk 0:00:27.3]} 35. gxh4 {[%clk 0:00:33.7]} 35... gxh4
{[%clk 0:00:29.2]} 36. Re8 {[%clk 0:00:33.4]} 36... Ra5 {[%clk 0:00:16.4]} 37.
e5 {[%clk 0:00:31.2]} 37... Rb5 {[%clk 0:00:17.3]} 38. Rh8 {[%clk 0:00:20.9]}
38... Kg7 {[%clk 0:00:16.8]} 39. Rh5 {[%clk 0:00:21]} 39... Rxb3 {[%clk
0:00:17.7]} 40. Kd5 {[%clk 0:00:22.1]} 40... h3 {[%clk 0:00:17.8]} 41. e6 {[%clk
0:00:22.1]} 41... a5 {[%clk 0:00:16.1]} 42. e7 {[%clk 0:00:17.4]} 42... Kf7
{[%clk 0:00:16.6]} 43. Rh7+ {[%clk 0:00:18.5]} 43... Ke8 {[%clk 0:00:17.2]} 44.
Kd6 {[%clk 0:00:18.5]} 44... Rd3+ {[%clk 0:00:17.6]} 45. Ke6 {[%clk 0:00:19.8]}
45... Re3+ {[%clk 0:00:18.8]} 46. Kd6 {[%clk 0:00:20.7]} 46... Rd3+ {[%clk
0:00:13.9]} 47. Ke6 {[%clk 0:00:21.9]} 47... Re3+ {[%clk 0:00:15.4]} 48. Kd6
{[%clk 0:00:23]} 48... Rd3+ {[%clk 0:00:16.7]} 49. Ke6 {[%clk 0:00:24.3]} 49...
Re3+ {[%clk 0:00:18.1]} 50. Kd6 {[%clk 0:00:25.2]} 50... Rd3+ {[%clk 0:00:19]}
51. Ke6 {[%clk 0:00:26.4]} 1/2-1/2

[Event "*** Titled Tuesday Blitz"]
[Site "Chess.com"]
[Date "2018.12.04"]
[Round "7"]
[White "MerdeNoms943"]
[Black "silverback96"]
[Result "1-0"]
[WhiteElo "2329"]
[BlackElo "2149"]
[TimeControl "180+2"]
[EndTime "14:38:43 PST"]
[Termination "MerdeNoms943 won on time"]

1. e4 {[%clk 0:03:01.9]} 1... c5 {[%clk 0:02:58]} 2. Nf3 {[%clk 0:03:03]} 2...
Nc6 {[%clk 0:02:59.5]} 3. d4 {[%clk 0:03:02.9]} 3... cxd4 {[%clk 0:03:01.4]} 4.
Nxd4 {[%clk 0:03:03.2]} 4... Nf6 {[%clk 0:03:03.3]} 5. Nc3 {[%clk 0:03:04.1]}
5... e5 {[%clk 0:03:05.2]} 6. Ndb5 {[%clk 0:03:04.4]} 6... d6 {[%clk 0:03:06]}
7. Bg5 {[%clk 0:03:03.8]} 7... a6 {[%clk 0:03:05.8]} 8. Na3 {[%clk 0:03:02.3]}
8... b5 {[%clk 0:03:07.7]} 9. Bxf6 {[%clk 0:03:03.9]} 9... gxf6 {[%clk
0:03:08.8]} 10. Nd5 {[%clk 0:03:05.4]} 10... f5 {[%clk 0:03:10.6]} 11. Bd3
{[%clk 0:03:05.8]} 11... Be6 {[%clk 0:03:09.4]} 12. c3 {[%clk 0:03:06.4]} 12...
Bg7 {[%clk 0:03:08.6]} 13. Nxb5 {[%clk 0:03:07.4]} 13... O-O {[%clk 0:03:05.3]}
14. Nbc7 {[%clk 0:02:44.9]} 14... Ra7 {[%clk 0:03:04.5]} 15. exf5 {[%clk
0:02:39.9]} 15... Bc8 {[%clk 0:02:58.6]} 16. f6 {[%clk 0:02:37.4]} 16... Rxc7
{[%clk 0:02:22.6]} 17. Qh5 {[%clk 0:02:19]} 17... h6 {[%clk 0:02:23.5]} 18. fxg7
{[%clk 0:02:19.7]} 18... Kxg7 {[%clk 0:02:25.1]} 19. Nxc7 {[%clk 0:02:14.8]}
19... Qxc7 {[%clk 0:02:27]} 20. O-O {[%clk 0:02:00.5]} 20... f5 {[%clk
0:02:27.2]} 21. f4 {[%clk 0:01:40.7]} 21... e4 {[%clk 0:02:23]} 22. Bc4 {[%clk
0:01:36.3]} 22... Ne7 {[%clk 0:02:16.2]} 23. Bb3 {[%clk 0:01:34.6]} 23... Ng6
{[%clk 0:02:01.3]} 24. Rae1 {[%clk 0:01:33.6]} 24... Qb6+ {[%clk 0:01:58.8]} 25.
Kh1 {[%clk 0:01:33.7]} 25... Bb7 {[%clk 0:01:54.4]} 26. Qh3 {[%clk 0:01:18.4]}
26... a5 {[%clk 0:01:45.7]} 27. Re3 {[%clk 0:01:14]} 27... Bc6 {[%clk
0:01:44.4]} 28. Be6 {[%clk 0:01:11.7]} 28... Rf6 {[%clk 0:01:33.8]} 29. Bb3
{[%clk 0:01:06.4]} 29... a4 {[%clk 0:01:34.3]} 30. Bd1 {[%clk 0:01:02.9]} 30...
Qxb2 {[%clk 0:01:33.9]} 31. Bh5 {[%clk 0:01:02.5]} 31... Nxf4 {[%clk 0:01:21.2]}
32. Rg3+ {[%clk 0:00:56.7]} 32... Kh7 {[%clk 0:01:09.5]} 33. Qh4 {[%clk
0:00:48.5]} 33... Nd5 {[%clk 0:01:03.6]} 34. c4 {[%clk 0:00:46.8]} 34... Nb6
{[%clk 0:00:54.7]} 35. h3 {[%clk 0:00:31.3]} 35... Nxc4 {[%clk 0:00:53.4]} 36.
Rxf5 {[%clk 0:00:27.4]} 36... Qa1+ {[%clk 0:00:12.7]} 37. Kh2 {[%clk 0:00:26.9]}
37... Re6 {[%clk 0:00:07]} 38. Rf7+ {[%clk 0:00:23.3]} 38... Kh8 {[%clk
0:00:02.6]} 39. Qd8+ {[%clk 0:00:17.6]} 39... Be8 {[%clk 0:00:03.6]} 40. Rf8+
{[%clk 0:00:15]} 40... Kh7 {[%clk 0:00:04]} 41. Qc7+ {[%clk 0:00:08.9]} 1-0

[Event "*** Titled Tuesday Blitz"]
[Site "Chess.com"]
[Date "2018.12.04"]
[Round "7"]
[White "wadsy27"]
[Black "snowlord"]
[Result "1-0"]
[WhiteElo "2426"]
[BlackElo "2615"]
[TimeControl "180+2"]
[EndTime "14:38:43 PST"]
[Termination "wadsy27 won by resignation"]

1. c4 {[%clk 0:03:01.9]} 1... c5 {[%clk 0:03:00.3]} 2. g3 {[%clk 0:03:03.8]}
2... Nc6 {[%clk 0:03:00]} 3. Bg2 {[%clk 0:03:04.8]} 3... g6 {[%clk 0:03:01.7]}
4. Nc3 {[%clk 0:03:05.1]} 4... Bg7 {[%clk 0:03:03.3]} 5. Nf3 {[%clk 0:03:06.1]}
5... e6 {[%clk 0:03:04.4]} 6. d3 {[%clk 0:03:06.6]} 6... d6 {[%clk 0:03:05.7]}
7. Rb1 {[%clk 0:02:54.9]} 7... Nge7 {[%clk 0:03:05.8]} 8. Bg5 {[%clk 0:02:46.5]}
8... h6 {[%clk 0:03:05.5]} 9. Bd2 {[%clk 0:02:46.7]} 9... O-O {[%clk 0:03:05.2]}
10. O-O {[%clk 0:02:47.3]} 10... b6 {[%clk 0:03:05.4]} 11. Qc1 {[%clk
0:02:47.8]} 11... Kh7 {[%clk 0:03:05.3]} 12. a3 {[%clk 0:02:48.5]} 12... Bb7
{[%clk 0:03:06.2]} 13. b4 {[%clk 0:02:49.1]} 13... Qd7 {[%clk 0:03:07.8]} 14. h4
{[%clk 0:02:43.3]} 14... Nd4 {[%clk 0:03:04.1]} 15. Nxd4 {[%clk 0:02:30.2]}
15... cxd4 {[%clk 0:03:06]} 16. Nd1 {[%clk 0:02:19.4]} 16... Bxg2 {[%clk
0:03:05.5]} 17. Kxg2 {[%clk 0:02:20]} 17... b5 {[%clk 0:03:07]} 18. e4 {[%clk
0:02:06.9]} 18... bxc4 {[%clk 0:03:01.2]} 19. Qxc4 {[%clk 0:02:04.6]} 19... Rac8
{[%clk 0:03:01.4]} 20. Qb3 {[%clk 0:02:03.3]} 20... d5 {[%clk 0:03:02.1]} 21. f3
{[%clk 0:01:48.9]} 21... dxe4 {[%clk 0:02:13.7]} 22. fxe4 {[%clk 0:01:49.1]}
22... Nc6 {[%clk 0:02:10.2]} 23. Nf2 {[%clk 0:01:48.2]} 23... Ne5 {[%clk
0:02:11.4]} 24. Rfc1 {[%clk 0:01:46]} 24... Qb7 {[%clk 0:02:05.4]} 25. Rxc8
{[%clk 0:01:43.3]} 25... Rxc8 {[%clk 0:02:07.3]} 26. Rc1 {[%clk 0:01:43.9]}
26... Rxc1 {[%clk 0:02:08.3]} 27. Bxc1 {[%clk 0:01:45.1]} 27... Qc6 {[%clk
0:01:59]} 28. Bb2 {[%clk 0:01:31.6]} 28... h5 {[%clk 0:01:49.7]} 29. Bxd4 {[%clk
0:01:29.8]} 29... Ng4 {[%clk 0:01:49.9]} 30. Bxg7 {[%clk 0:01:27.9]} 30... Nxf2
{[%clk 0:01:40]} 31. Kxf2 {[%clk 0:01:12.2]} 31... Kxg7 {[%clk 0:01:40.2]} 32.
Qc4 {[%clk 0:01:12.5]} 32... Qd6 {[%clk 0:01:37.3]} 33. d4 {[%clk 0:01:08.1]}
33... Kg8 {[%clk 0:01:37.2]} 34. Qc8+ {[%clk 0:01:07.7]} 34... Kg7 {[%clk
0:01:37.7]} 35. Qc5 {[%clk 0:01:09.2]} 35... Qa6 {[%clk 0:01:37.7]} 36. b5
{[%clk 0:01:01.9]} 36... Qa4 {[%clk 0:01:38.1]} 37. d5 {[%clk 0:00:51.2]} 37...
Qxe4 {[%clk 0:01:35.9]} 38. d6 {[%clk 0:00:52.3]} 38... Qd3 {[%clk 0:01:31]} 39.
Qxa7 {[%clk 0:00:43]} 39... Qxd6 {[%clk 0:01:26.8]} 40. Qe3 {[%clk 0:00:34.7]}
40... Qd5 {[%clk 0:01:26]} 41. b6 {[%clk 0:00:28.4]} 41... Qa2+ {[%clk
0:01:22.7]} 42. Kf3 {[%clk 0:00:27.2]} 42... Qb1 {[%clk 0:01:23.2]} 43. Qd4+
{[%clk 0:00:21.6]} 43... Kg8 {[%clk 0:01:22.2]} 44. a4 {[%clk 0:00:21.7]} 44...
Qb3+ {[%clk 0:01:20.9]} 45. Kf2 {[%clk 0:00:22.8]} 45... Qc2+ {[%clk 0:01:21.1]}
46. Ke3 {[%clk 0:00:23.8]} 46... Qc1+ {[%clk 0:01:20.1]} 47. Kd3 {[%clk
0:00:24.1]} 47... Qd1+ {[%clk 0:01:20.7]} 48. Kc4 {[%clk 0:00:23.3]} 48... Qxa4+
{[%clk 0:01:21.3]} 49. Kc5 {[%clk 0:00:24.8]} 49... Qb3 {[%clk 0:01:19.9]} 50.
Kc6 {[%clk 0:00:21.6]} 50... Qxg3 {[%clk 0:01:15.8]} 51. b7 {[%clk 0:00:21.6]}
51... Kh7 {[%clk 0:01:16.9]} 52. Qd6 {[%clk 0:00:17.2]} 52... Qc3+ {[%clk
0:01:14.3]} 53. Kd7 {[%clk 0:00:17.5]} 53... Qc4 {[%clk 0:01:06.7]} 54. b8=Q
{[%clk 0:00:17.3]} 54... Qa4+ {[%clk 0:01:07.1]} 55. Ke7 {[%clk 0:00:18]} 55...
Qxh4+ {[%clk 0:01:07.6]} 56. Kxf7 {[%clk 0:00:15.9]} 56... Qf2+ {[%clk
0:01:08.7]} 57. Qf4 {[%clk 0:00:15.9]} 1-0

[Event "*** Titled Tuesday Blitz"]
[Site "Chess.com"]
[Date "2018.12.04"]
[Round "7"]
[White "StephenDedalus83"]
[Black "TigranLPetrosyan"]
[Result "1-0"]
[WhiteElo "2750"]
[BlackElo "2806"]
[TimeControl "180+2"]
[EndTime "14:38:49 PST"]
[Termination "StephenDedalus83 won by resignation"]

1. e4 {[%clk 0:03:01.9]} 1... g6 {[%clk 0:03:01.9]} 2. d4 {[%clk 0:03:02.1]}
2... Bg7 {[%clk 0:03:03.8]} 3. Nc3 {[%clk 0:03:02.6]} 3... a6 {[%clk 0:03:04.8]}
4. h4 {[%clk 0:03:02.4]} 4... b5 {[%clk 0:03:06]} 5. h5 {[%clk 0:03:03.1]} 5...
Bb7 {[%clk 0:03:04.9]} 6. h6 {[%clk 0:02:54.2]} 6... Bf8 {[%clk 0:03:03.1]} 7.
Nf3 {[%clk 0:02:55.2]} 7... d6 {[%clk 0:03:01.9]} 8. Bg5 {[%clk 0:02:48.9]} 8...
Nd7 {[%clk 0:03:00.6]} 9. Qd2 {[%clk 0:02:48.2]} 9... f6 {[%clk 0:02:59.7]} 10.
Be3 {[%clk 0:02:47.7]} 10... e5 {[%clk 0:02:57.7]} 11. dxe5 {[%clk 0:02:39.7]}
11... fxe5 {[%clk 0:02:56.1]} 12. Ng5 {[%clk 0:02:36]} 12... Qe7 {[%clk
0:02:45.8]} 13. Nd5 {[%clk 0:02:36.3]} 13... Bxd5 {[%clk 0:02:44.6]} 14. Qxd5
{[%clk 0:02:10.8]} 14... Rb8 {[%clk 0:02:43.3]} 15. Ne6 {[%clk 0:01:44.6]} 15...
Ndf6 {[%clk 0:02:21.4]} 16. Qc6+ {[%clk 0:01:44.2]} 16... Qd7 {[%clk 0:02:20.8]}
17. Nxc7+ {[%clk 0:01:41.6]} 17... Kd8 {[%clk 0:02:16.2]} 18. Qxd7+ {[%clk
0:01:31.2]} 18... Kxd7 {[%clk 0:02:18.1]} 19. Nxa6 {[%clk 0:01:31.7]} 19... Rb7
{[%clk 0:02:19.6]} 20. f3 {[%clk 0:01:31.1]} 20... d5 {[%clk 0:02:15.1]} 21.
exd5 {[%clk 0:01:30.9]} 21... Nxd5 {[%clk 0:02:17]} 22. O-O-O {[%clk 0:01:30.3]}
22... Ke6 {[%clk 0:02:18.1]} 23. Nc5+ {[%clk 0:01:23.6]} 23... Bxc5 {[%clk
0:02:13.2]} 24. Bxc5 {[%clk 0:01:25.5]} 24... Ngf6 {[%clk 0:02:13.8]} 25. g3
{[%clk 0:01:19.5]} 25... Rc7 {[%clk 0:02:01.7]} 26. Bf2 {[%clk 0:01:18.4]} 26...
Ra8 {[%clk 0:02:02]} 27. Kb1 {[%clk 0:01:15.6]} 27... b4 {[%clk 0:01:59.8]} 28.
Rh4 {[%clk 0:01:09.1]} 28... Rc6 {[%clk 0:01:43]} 29. Bc4 {[%clk 0:01:08.6]}
29... g5 {[%clk 0:01:38.1]} 30. Re4 {[%clk 0:01:07.4]} 30... Ra5 {[%clk
0:01:10.4]} 31. Bb3 {[%clk 0:01:05.3]} 31... g4 {[%clk 0:01:05.4]} 32. Bd4
{[%clk 0:00:30.8]} 32... gxf3 {[%clk 0:00:59.6]} 33. Rxe5+ {[%clk 0:00:31.3]}
33... Kf7 {[%clk 0:00:52]} 34. Rf5 {[%clk 0:00:30.6]} 34... Kg6 {[%clk
0:00:50.3]} 35. Rxf3 {[%clk 0:00:27.7]} 35... Ne4 {[%clk 0:00:51.4]} 36. Bg7
{[%clk 0:00:23.9]} 36... Rcc5 {[%clk 0:00:27.7]} 37. Rfd3 {[%clk 0:00:22.2]}
37... Nb6 {[%clk 0:00:26.1]} 38. Rd6+ {[%clk 0:00:21.5]} 38... Nxd6 {[%clk
0:00:26.6]} 39. Rxd6+ {[%clk 0:00:23]} 39... Kh5 {[%clk 0:00:27.6]} 40. Rxb6
{[%clk 0:00:24.6]} 40... Rf5 {[%clk 0:00:28.2]} 41. a4 {[%clk 0:00:25.1]} 41...
bxa3 {[%clk 0:00:25]} 42. bxa3 {[%clk 0:00:26]} 42... Rxa3 {[%clk 0:00:26.3]}
43. Rb4 {[%clk 0:00:27]} 43... Rf1+ {[%clk 0:00:22.5]} 44. Kb2 {[%clk
0:00:28.1]} 44... Raa1 {[%clk 0:00:24.3]} 45. g4+ {[%clk 0:00:28.5]} 45... Kg5
{[%clk 0:00:23.3]} 46. Kc3 {[%clk 0:00:29.6]} 46... Ra6 {[%clk 0:00:15.8]} 47.
Bc4 {[%clk 0:00:30.2]} 47... Rc6 {[%clk 0:00:07.5]} 48. Kb2 {[%clk 0:00:31.2]}
48... Rf4 {[%clk 0:00:07.9]} 49. Kb3 {[%clk 0:00:32.3]} 49... Rxg4 {[%clk
0:00:04.8]} 50. Bd3 {[%clk 0:00:33]} 50... Rxb4+ {[%clk 0:00:04]} 51. Kxb4
{[%clk 0:00:34.3]} 51... Kf4 {[%clk 0:00:05.6]} 52. Bxh7 {[%clk 0:00:34.2]} 1-0

[Event "*** Titled Tuesday Blitz"]
[Site "Chess.com"]
[Date "2018.12.04"]
[Round "7"]
[White "nailbeshirli"]
[Black "Robert_Chessmood"]
[Result "1-0"]
[WhiteElo "2607"]
[BlackElo "2921"]
[TimeControl "180+2"]
[EndTime "14:38:53 PST"]
[Termination "nailbeshirli won on time"]

1. e3 {[%clk 0:03:01.9]} 1... e5 {[%clk 0:03:00.2]} 2. c4 {[%clk 0:02:57.4]}
2... Nf6 {[%clk 0:03:00.6]} 3. Nc3 {[%clk 0:02:55]} 3... Bb4 {[%clk 0:03:00.1]}
4. Nge2 {[%clk 0:02:48.4]} 4... O-O {[%clk 0:03:00.7]} 5. a3 {[%clk 0:02:46.8]}
5... Be7 {[%clk 0:03:01.3]} 6. d4 {[%clk 0:02:47.1]} 6... exd4 {[%clk
0:03:00.7]} 7. Nxd4 {[%clk 0:02:44.1]} 7... d5 {[%clk 0:03:01.6]} 8. cxd5 {[%clk
0:02:42]} 8... Nxd5 {[%clk 0:03:03.5]} 9. Bd3 {[%clk 0:02:39.2]} 9... Nxc3
{[%clk 0:02:54.2]} 10. bxc3 {[%clk 0:02:41.1]} 10... Bf6 {[%clk 0:02:46.3]} 11.
O-O {[%clk 0:02:36.1]} 11... Nd7 {[%clk 0:02:46.8]} 12. Qc2 {[%clk 0:02:34.6]}
12... g6 {[%clk 0:02:47.1]} 13. a4 {[%clk 0:02:33.5]} 13... Nc5 {[%clk
0:02:36.3]} 14. Bc4 {[%clk 0:02:18.8]} 14... Qe7 {[%clk 0:02:11.8]} 15. Ba3
{[%clk 0:02:10.7]} 15... b6 {[%clk 0:02:06.1]} 16. Bd5 {[%clk 0:02:05.7]} 16...
Rb8 {[%clk 0:01:56.6]} 17. Nc6 {[%clk 0:02:02.2]} 17... Qd6 {[%clk 0:01:44.7]}
18. Rad1 {[%clk 0:01:51.7]} 18... Rb7 {[%clk 0:01:38.7]} 19. Bxf7+ {[%clk
0:01:50.6]} 19... Rxf7 {[%clk 0:01:40.6]} 20. Rxd6 {[%clk 0:01:51.9]} 20... cxd6
{[%clk 0:01:42.5]} 21. Bxc5 {[%clk 0:01:38.5]} 21... bxc5 {[%clk 0:01:32.8]} 22.
Rd1 {[%clk 0:01:33.9]} 22... Rfd7 {[%clk 0:01:15.8]} 23. e4 {[%clk 0:01:31.2]}
23... Kg7 {[%clk 0:01:09.9]} 24. f4 {[%clk 0:01:26.2]} 24... Rb6 {[%clk
0:01:06.9]} 25. e5 {[%clk 0:01:19.5]} 25... dxe5 {[%clk 0:01:03]} 26. Rxd7+
{[%clk 0:01:21.3]} 26... Bxd7 {[%clk 0:01:03.6]} 27. Nxe5 {[%clk 0:01:09]} 27...
Be6 {[%clk 0:00:46.2]} 28. h3 {[%clk 0:00:55.7]} 28... Rb7 {[%clk 0:00:34.4]}
29. Qe4 {[%clk 0:00:49.7]} 29... Rc7 {[%clk 0:00:19.6]} 30. g4 {[%clk
0:00:48.8]} 30... c4 {[%clk 0:00:16.9]} 31. g5 {[%clk 0:00:46.1]} 31... Bd8
{[%clk 0:00:14.5]} 32. Qd4 {[%clk 0:00:45]} 32... Be7 {[%clk 0:00:05.8]} 33.
Ng4+ {[%clk 0:00:35]} 33... Kf7 {[%clk 0:00:05.5]} 34. Qh8 {[%clk 0:00:36.2]}
34... Bxg4 {[%clk 0:00:05.4]} 35. Qxh7+ {[%clk 0:00:36.9]} 35... Kf8 {[%clk
0:00:03.9]} 36. Qh8+ {[%clk 0:00:29]} 36... Kf7 {[%clk 0:00:05.4]} 37. hxg4
{[%clk 0:00:30.9]} 37... Bf8 {[%clk 0:00:05]} 38. f5 {[%clk 0:00:29.5]} 38...
Bg7 {[%clk 0:00:05.5]} 39. Qh7 {[%clk 0:00:30.3]} 39... gxf5 {[%clk 0:00:05.6]}
40. gxf5 {[%clk 0:00:30.1]} 40... Rc5 {[%clk 0:00:06.5]} 41. Qg6+ {[%clk
0:00:30.7]} 41... Kf8 {[%clk 0:00:07.8]} 42. f6 {[%clk 0:00:31.9]} 42... Bh8
{[%clk 0:00:07.2]} 43. Qh6+ {[%clk 0:00:33]} 43... Kg8 {[%clk 0:00:07.9]} 44. g6
{[%clk 0:00:34]} 44... Rc7 {[%clk 0:00:07]} 45. f7+ {[%clk 0:00:34.7]} 45...
Rxf7 {[%clk 0:00:07.9]} 46. gxf7+ {[%clk 0:00:36.6]} 46... Kxf7 {[%clk
0:00:09.5]} 47. Qxh8 {[%clk 0:00:37.7]} 47... a5 {[%clk 0:00:11.4]} 48. Qd4
{[%clk 0:00:39.4]} 48... Ke6 {[%clk 0:00:12.7]} 49. Qxc4+ {[%clk 0:00:41.3]}
49... Kd6 {[%clk 0:00:14.6]} 50. Qb5 {[%clk 0:00:43.2]} 50... Kc7 {[%clk
0:00:15.8]} 51. c4 {[%clk 0:00:45.1]} 1-0

[Event "*** Titled Tuesday Blitz"]
[Site "Chess.com"]
[Date "2018.12.04"]
[Round "7"]
[White "GMKrikor"]
[Black "Ali_rastbod"]
[Result "1/2-1/2"]
[WhiteElo "2665"]
[BlackElo "2587"]
[TimeControl "180+2"]
[EndTime "14:38:56 PST"]
[Termination "Game drawn by stalemate"]

1. e4 {[%clk 0:03:01.9]} 1... e6 {[%clk 0:03:01.2]} 2. d4 {[%clk 0:03:02.5]}
2... d5 {[%clk 0:03:02.8]} 3. Nd2 {[%clk 0:03:04]} 3... Nc6 {[%clk 0:03:03.4]}
4. Ngf3 {[%clk 0:03:04.4]} 4... Nf6 {[%clk 0:03:04.8]} 5. e5 {[%clk 0:03:05.6]}
5... Nd7 {[%clk 0:03:06.3]} 6. Nb3 {[%clk 0:03:05.1]} 6... f6 {[%clk 0:03:07.2]}
7. Bb5 {[%clk 0:03:05]} 7... a6 {[%clk 0:03:07.4]} 8. Bxc6 {[%clk 0:03:03.8]}
8... bxc6 {[%clk 0:03:09.3]} 9. Na5 {[%clk 0:02:46.9]} 9... Nb8 {[%clk
0:03:08.1]} 10. O-O {[%clk 0:02:45.2]} 10... c5 {[%clk 0:03:03.2]} 11. Re1
{[%clk 0:01:58.8]} 11... f5 {[%clk 0:02:57.6]} 12. c4 {[%clk 0:00:51.1]} 12...
c6 {[%clk 0:02:56.7]} 13. Nb3 {[%clk 0:00:50.3]} 13... cxd4 {[%clk 0:02:25.8]}
14. cxd5 {[%clk 0:00:47]} 14... Qxd5 {[%clk 0:02:11.6]} 15. Qxd4 {[%clk
0:00:43.5]} 15... Qxd4 {[%clk 0:02:08.4]} 16. Nfxd4 {[%clk 0:00:36.2]} 16... c5
{[%clk 0:02:09]} 17. Ne2 {[%clk 0:00:37.6]} 17... Nc6 {[%clk 0:02:05.3]} 18. Be3
{[%clk 0:00:38.7]} 18... c4 {[%clk 0:02:03.1]} 19. Nc5 {[%clk 0:00:39.5]} 19...
Nxe5 {[%clk 0:02:02.7]} 20. Nf4 {[%clk 0:00:38.5]} 20... Kf7 {[%clk 0:02:00.4]}
21. Nfxe6 {[%clk 0:00:25.2]} 21... Bxe6 {[%clk 0:01:49.6]} 22. Nxe6 {[%clk
0:00:27.1]} 22... Kxe6 {[%clk 0:01:48.1]} 23. Bd4 {[%clk 0:00:24.3]} 23... Bd6
{[%clk 0:01:49]} 24. Bxe5 {[%clk 0:00:20.9]} 24... Bxe5 {[%clk 0:01:50]} 25. f4
{[%clk 0:00:22.6]} 25... Rhb8 {[%clk 0:01:50.9]} 26. Rxe5+ {[%clk 0:00:18.6]}
26... Kf6 {[%clk 0:01:51.6]} 27. Rc1 {[%clk 0:00:15.9]} 27... Rxb2 {[%clk
0:01:49.4]} 28. Rxc4 {[%clk 0:00:17.2]} 28... Rxa2 {[%clk 0:01:38.7]} 29. Rc6+
{[%clk 0:00:18.1]} 29... Kf7 {[%clk 0:01:40.3]} 30. Rxf5+ {[%clk 0:00:19.8]}
30... Kg8 {[%clk 0:01:41.5]} 31. Rc7 {[%clk 0:00:17.4]} 31... Rf8 {[%clk
0:01:33.5]} 32. Rxf8+ {[%clk 0:00:09.6]} 32... Kxf8 {[%clk 0:01:35.4]} 33. h4
{[%clk 0:00:11.3]} 33... a5 {[%clk 0:01:35.7]} 34. Kh2 {[%clk 0:00:12.8]} 34...
a4 {[%clk 0:01:36.3]} 35. h5 {[%clk 0:00:13.2]} 35... a3 {[%clk 0:01:36.8]} 36.
Ra7 {[%clk 0:00:13.3]} 36... Ra1 {[%clk 0:01:34.3]} 37. Kg3 {[%clk 0:00:08.9]}
37... a2 {[%clk 0:01:35.4]} 38. Kh2 {[%clk 0:00:05.6]} 38... Ke8 {[%clk
0:01:34.3]} 39. g3 {[%clk 0:00:04.2]} 39... Kd8 {[%clk 0:01:29.7]} 40. Kg2
{[%clk 0:00:05.2]} 40... Kc8 {[%clk 0:01:30.7]} 41. Kh2 {[%clk 0:00:03.1]} 41...
Kb8 {[%clk 0:01:31.8]} 42. Ra3 {[%clk 0:00:04.3]} 42... Kb7 {[%clk 0:01:33.1]}
43. Kg2 {[%clk 0:00:05.9]} 43... Kb6 {[%clk 0:01:34.5]} 44. Ra4 {[%clk
0:00:07.2]} 44... Kb5 {[%clk 0:01:35.5]} 45. Ra7 {[%clk 0:00:08.5]} 45... Kb4
{[%clk 0:01:35.7]} 46. g4 {[%clk 0:00:07.2]} 46... Kb3 {[%clk 0:01:32.2]} 47.
Rb7+ {[%clk 0:00:08.5]} 47... Kc4 {[%clk 0:01:32.6]} 48. Ra7 {[%clk 0:00:10.1]}
48... Kd4 {[%clk 0:01:34]} 49. f5 {[%clk 0:00:05]} 49... Ke5 {[%clk 0:01:33.9]}
50. Ra5+ {[%clk 0:00:05.7]} 50... Kf6 {[%clk 0:01:33.8]} 51. Kh2 {[%clk
0:00:03.5]} 51... Kg5 {[%clk 0:01:34]} 52. Ra4 {[%clk 0:00:05]} 52... Rf1 {[%clk
0:01:29.5]} 53. Rxa2 {[%clk 0:00:05.2]} 53... Kxg4 {[%clk 0:01:30.7]} 54. Rg2+
{[%clk 0:00:06]} 54... Kxh5 {[%clk 0:01:30.2]} 55. Rxg7 {[%clk 0:00:07.9]} 55...
h6 {[%clk 0:01:29.6]} 56. Rf7 {[%clk 0:00:07.6]} 56... Kg5 {[%clk 0:01:31.1]}
57. Kg3 {[%clk 0:00:05.4]} 57... h5 {[%clk 0:01:30.6]} 58. Kg2 {[%clk
0:00:04.3]} 58... Rxf5 {[%clk 0:01:29.9]} 59. Rxf5+ {[%clk 0:00:05.4]} 59...
Kxf5 {[%clk 0:01:31.7]} 60. Kh1 {[%clk 0:00:07.3]} 60... Kg4 {[%clk 0:01:33.1]}
61. Kg1 {[%clk 0:00:09.2]} 61... h4 {[%clk 0:01:35]} 62. Kh1 {[%clk 0:00:11.1]}
62... h3 {[%clk 0:01:36.9]} 63. Kg1 {[%clk 0:00:12.4]} 63... Kg3 {[%clk
0:01:38.7]} 64. Kh1 {[%clk 0:00:14.3]} 64... h2 {[%clk 0:01:40.6]} 1/2-1/2